[Event "Titled Tuesday Blitz February 15 Late 2022"]
[White "Batsiashvili, Nino"]
[Black "Riehle, Marco"]
[WhiteFideId "13602993"]
[BlackFideId "12904392"]
[WhiteElo "2230"]
[BlackElo "2462"]
[Result "0-1"]
[Round "06"]
[TimeControl "180+1"]
[Date "2022.02.16"]
[WhiteClock "0:00:03"]
[BlackClock "0:01:16"]

1. d4 {[%clk 0:03:00]}  d5 {[%clk 0:02:57]} 2. c4 {[%clk 0:03:01]}  e6 {[%clk 0:02:56]} 3. Nf3 {[%clk 0:03:01]}  Nf6 {[%clk 0:02:53]} 4. Nc3 {[%clk 0:03:01]}  c5 {[%clk 0:02:51]} 5. cxd5 {[%clk 0:03:02]}  Nxd5 {[%clk 0:02:52]} 6. e4 {[%clk 0:03:01]}  Nxc3 {[%clk 0:02:50]} 7. bxc3 {[%clk 0:03:02]}  cxd4 {[%clk 0:02:50]} 8. cxd4 {[%clk 0:03:03]}  Bb4+ {[%clk 0:02:51]} 9. Bd2 {[%clk 0:03:04]}  Bxd2+ {[%clk 0:02:51]} 10. Qxd2 {[%clk 0:03:04]}  O-O {[%clk 0:02:52]} 11. Bc4 {[%clk 0:03:02]}  b6 {[%clk 0:02:52]} 12. O-O {[%clk 0:03:02]}  Bb7 {[%clk 0:02:52]} 13. Rfe1 {[%clk 0:03:02]}  Nc6 {[%clk 0:02:51]} 14. Rad1 {[%clk 0:02:55]}  Rc8 {[%clk 0:02:50]} 15. d5 {[%clk 0:02:46]}  exd5 {[%clk 0:02:50]} 16. exd5 {[%clk 0:02:41]}  Na5 {[%clk 0:02:49]} 17. Bb3 {[%clk 0:02:23]}  Nxb3 {[%clk 0:02:49]} 18. axb3 {[%clk 0:02:24]}  Qd6 {[%clk 0:02:48]} 19. h4 {[%clk 0:02:08]}  Rfe8 {[%clk 0:02:43]} 20. Rxe8+ {[%clk 0:02:01]}  Rxe8 {[%clk 0:02:44]} 21. Qd4 {[%clk 0:02:01]}  h6 {[%clk 0:02:41]} 22. b4 {[%clk 0:01:56]}  Rd8 {[%clk 0:02:40]} 23. Ra1 {[%clk 0:01:51]}  Qxd5 {[%clk 0:02:36]} 24. Qxd5 {[%clk 0:01:50]}  Bxd5 {[%clk 0:02:37]} 25. Rxa7 {[%clk 0:01:50]}  Bxf3 {[%clk 0:02:37]} 26. gxf3 {[%clk 0:01:51]}  Rd4 {[%clk 0:02:37]} 27. b5 {[%clk 0:01:48]}  Rb4 {[%clk 0:02:36]} 28. Kg2 {[%clk 0:01:46]}  Rxb5 {[%clk 0:02:36]} 29. Rb7 {[%clk 0:01:46]}  Rb1 {[%clk 0:02:35]} 30. Rb8+ {[%clk 0:01:42]}  Kh7 {[%clk 0:02:34]} 31. h5 {[%clk 0:01:42]}  Rb5 {[%clk 0:02:34]} 32. Rb7 {[%clk 0:01:42]}  f6 {[%clk 0:02:30]} 33. f4 {[%clk 0:01:36]}  Rxh5 {[%clk 0:02:29]} 34. Rxb6 {[%clk 0:01:35]}  Rc5 {[%clk 0:02:30]} 35. Kg3 {[%clk 0:01:34]}  Rc7 {[%clk 0:02:29]} 36. Kg4 {[%clk 0:01:32]}  Kg6 {[%clk 0:02:27]} 37. f5+ {[%clk 0:01:32]}  Kf7 {[%clk 0:02:26]} 38. f4 {[%clk 0:01:31]}  Kg8 {[%clk 0:02:24]} 39. Rb8+ {[%clk 0:01:31]}  Kh7 {[%clk 0:02:24]} 40. Rd8 {[%clk 0:01:28]}  Rc1 {[%clk 0:02:23]} 41. Re8 {[%clk 0:01:27]}  Rg1+ {[%clk 0:02:22]} 42. Kh4 {[%clk 0:01:26]}  Rf1 {[%clk 0:02:19]} 43. Kg4 {[%clk 0:01:25]}  Ra1 {[%clk 0:02:18]} 44. Rb8 {[%clk 0:01:24]}  Ra5 {[%clk 0:02:18]} 45. Rd8 {[%clk 0:01:22]}  h5+ {[%clk 0:02:15]} 46. Kxh5 {[%clk 0:01:22]}  Rxf5+ {[%clk 0:02:15]} 47. Kg4 {[%clk 0:01:23]}  Ra5 {[%clk 0:02:15]} 48. Rd7 {[%clk 0:01:19]}  Kg6 {[%clk 0:02:14]} 49. Rb7 {[%clk 0:01:19]}  Ra4 {[%clk 0:02:15]} 50. Rb5 {[%clk 0:01:15]}  Kh6 {[%clk 0:02:14]} 51. Rh5+ {[%clk 0:01:14]}  Kg6 {[%clk 0:02:14]} 52. Rb5 {[%clk 0:01:14]}  Kf7 {[%clk 0:02:13]} 53. Rb7+ {[%clk 0:01:15]}  Kg8 {[%clk 0:02:13]} 54. Rb6 {[%clk 0:01:08]}  Kh7 {[%clk 0:02:12]} 55. Kf5 {[%clk 0:01:07]}  Ra5+ {[%clk 0:02:11]} 56. Kg4 {[%clk 0:01:07]}  Kh6 {[%clk 0:02:09]} 57. Rb7 {[%clk 0:01:06]}  Ra6 {[%clk 0:02:09]} 58. Rc7 {[%clk 0:01:05]}  Kg6 {[%clk 0:02:08]} 59. Rb7 {[%clk 0:01:04]}  Ra1 {[%clk 0:02:04]} 60. Rb5 {[%clk 0:01:00]}  Rg1+ {[%clk 0:02:03]} 61. Kf3 {[%clk 0:01:00]}  Kh6 {[%clk 0:02:01]} 62. Ra5 {[%clk 0:00:59]}  Rb1 {[%clk 0:01:53]} 63. Rc5 {[%clk 0:00:57]}  g6 {[%clk 0:01:52]} 64. Rc6 {[%clk 0:00:55]}  f5 {[%clk 0:01:50]} 65. Ra6 {[%clk 0:00:54]}  Rb3+ {[%clk 0:01:47]} 66. Kg2 {[%clk 0:00:54]}  Kh5 {[%clk 0:01:47]} 67. Rc6 {[%clk 0:00:52]}  Ra3 {[%clk 0:01:46]} 68. Rb6 {[%clk 0:00:52]}  Kg4 {[%clk 0:01:44]} 69. Rxg6+ {[%clk 0:00:50]}  Kxf4 {[%clk 0:01:45]} 70. Rb6 {[%clk 0:00:50]}  Kg4 {[%clk 0:01:42]} 71. Rb8 {[%clk 0:00:48]}  Rc3 {[%clk 0:01:40]} 72. Kf2 {[%clk 0:00:46]}  Rc2+ {[%clk 0:01:38]} 73. Kf1 {[%clk 0:00:45]}  Rc3 {[%clk 0:01:38]} 74. Kf2 {[%clk 0:00:45]}  Ra3 {[%clk 0:01:39]} 75. Rb7 {[%clk 0:00:42]}  Ra8 {[%clk 0:01:31]} 76. Rb4+ {[%clk 0:00:39]}  f4 {[%clk 0:01:31]} 77. Rb3 {[%clk 0:00:40]}  Rh8 {[%clk 0:01:31]} 78. Kg2 {[%clk 0:00:39]}  Rd8 {[%clk 0:01:31]} 79. Kf2 {[%clk 0:00:40]}  Rd2+ {[%clk 0:01:31]} 80. Kf1 {[%clk 0:00:38]}  Rh2 {[%clk 0:01:31]} 81. Ra3 {[%clk 0:00:33]}  Rb2 {[%clk 0:01:30]} 82. Rc3 {[%clk 0:00:32]}  Kf5 {[%clk 0:01:30]} 83. Ra3 {[%clk 0:00:30]}  Rd2 {[%clk 0:01:30]} 84. Rb3 {[%clk 0:00:28]}  Ke4 {[%clk 0:01:30]} 85. Ra3 {[%clk 0:00:26]}  Rh2 {[%clk 0:01:28]} 86. Rb3 {[%clk 0:00:26]}  Rh8 {[%clk 0:01:27]} 87. Ra3 {[%clk 0:00:25]}  Kf5 {[%clk 0:01:27]} 88. Rb3 {[%clk 0:00:25]}  Ra8 {[%clk 0:01:27]} 89. Rc3 {[%clk 0:00:25]}  Kg4 {[%clk 0:01:27]} 90. Rb3 {[%clk 0:00:24]}  Ra1+ {[%clk 0:01:28]} 91. Kf2 {[%clk 0:00:24]}  Ra2+ {[%clk 0:01:28]} 92. Kf1 {[%clk 0:00:23]}  Rh2 {[%clk 0:01:29]} 93. Ra3 {[%clk 0:00:23]}  Rh3 {[%clk 0:01:28]} 94. Ra2 {[%clk 0:00:20]}  Rb3 {[%clk 0:01:24]} 95. Rg2+ {[%clk 0:00:17]}  Kf5 {[%clk 0:01:23]} 96. Ra2 {[%clk 0:00:16]}  Rc3 {[%clk 0:01:21]} 97. Kf2 {[%clk 0:00:16]}  Kg4 {[%clk 0:01:21]} 98. Rb2 {[%clk 0:00:16]}  Rh3 {[%clk 0:01:21]} 99. Rb8 {[%clk 0:00:14]}  Rh2+ {[%clk 0:01:20]} 100. Kg1 {[%clk 0:00:14]}  Re2 {[%clk 0:01:19]} 101. Rb3 {[%clk 0:00:15]}  Re3 {[%clk 0:01:19]} 102. Rb8 {[%clk 0:00:08]}  Kg3 {[%clk 0:01:20]} 103. Rg8+ {[%clk 0:00:08]}  Kf3 {[%clk 0:01:19]} 104. Rf8 {[%clk 0:00:08]}  Ra3 {[%clk 0:01:17]} 105. Rf7 {[%clk 0:00:07]}  Ra1+ {[%clk 0:01:17]} 106. Kh2 {[%clk 0:00:08]}  Re1 {[%clk 0:01:18]} 107. Rf8 {[%clk 0:00:08]}  Ke3 {[%clk 0:01:14]} 108. Re8+ {[%clk 0:00:08]}  Kf2 {[%clk 0:01:14]} 109. Ra8 {[%clk 0:00:07]}  f3 {[%clk 0:01:15]} 110. Ra2+ {[%clk 0:00:07]}  Re2 {[%clk 0:01:14]} 111. Ra1 {[%clk 0:00:07]}  Rb2 {[%clk 0:01:14]} 112. Rc1 {[%clk 0:00:05]}  Re2 {[%clk 0:01:13]} 113. Ra1 {[%clk 0:00:04]}  Re1 {[%clk 0:01:13]} 114. Ra2+ {[%clk 0:00:04]}  Ke3 {[%clk 0:01:13]} 115. Ra3+ {[%clk 0:00:04]}  Kf4 {[%clk 0:01:14]} 116. Ra4+ {[%clk 0:00:04]}  Re4 {[%clk 0:01:14]} 117. Ra2 {[%clk 0:00:04]}  Re2+ {[%clk 0:01:15]} 118. Rxe2 {[%clk 0:00:04]}  fxe2 {[%clk 0:01:15]} 119. Kg2 {[%clk 0:00:03]}  e1=Q {[%clk 0:01:16]} 0-1


[Site "https://www.chess.com"]

[Event "Titled Tuesday Blitz February 15 Late 2022"]
[White "Bok, Benjamin"]
[Black "Koziorowicz, Michal"]
[WhiteFideId "1017063"]
[BlackFideId "21809194"]
[WhiteElo "2658"]
[BlackElo "2166"]
[Result "1-0"]
[Round "06"]
[TimeControl "180+1"]
[Date "2022.02.15"]
[WhiteClock "0:00:10"]
[BlackClock "0:00:18"]

1. d4 {[%clk 0:03:00]}  f5 {[%clk 0:02:59]} 2. g3 {[%clk 0:03:00]}  Nf6 {[%clk 0:02:58]} 3. Bg2 {[%clk 0:03:01]}  e6 {[%clk 0:02:59]} 4. c4 {[%clk 0:03:00]}  Be7 {[%clk 0:02:59]} 5. Nc3 {[%clk 0:02:58]}  O-O {[%clk 0:03:00]} 6. Nf3 {[%clk 0:02:47]}  d6 {[%clk 0:03:00]} 7. Qc2 {[%clk 0:02:46]}  Nc6 {[%clk 0:02:58]} 8. d5 {[%clk 0:02:40]}  Ne5 {[%clk 0:02:56]} 9. Nxe5 {[%clk 0:01:59]}  dxe5 {[%clk 0:02:57]} 10. e4 {[%clk 0:01:59]}  exd5 {[%clk 0:02:53]} 11. cxd5 {[%clk 0:01:57]}  fxe4 {[%clk 0:02:41]} 12. O-O {[%clk 0:01:56]}  Bf5 {[%clk 0:02:40]} 13. Be3 {[%clk 0:01:43]}  Nxd5 {[%clk 0:02:25]} 14. Nxd5 {[%clk 0:01:36]}  Qxd5 {[%clk 0:02:24]} 15. Rfd1 {[%clk 0:01:37]}  Qc6 {[%clk 0:02:21]} 16. Qxc6 {[%clk 0:01:12]}  bxc6 {[%clk 0:02:22]} 17. Rac1 {[%clk 0:01:12]}  Rfd8 {[%clk 0:02:06]} 18. Rxd8+ {[%clk 0:01:11]}  Rxd8 {[%clk 0:02:07]} 19. h3 {[%clk 0:01:11]}  Rb8 {[%clk 0:01:19]} 20. b3 {[%clk 0:01:07]}  Bd6 {[%clk 0:01:17]} 21. Rxc6 {[%clk 0:01:04]}  a5 {[%clk 0:01:16]} 22. Ra6 {[%clk 0:00:42]}  Bb4 {[%clk 0:01:10]} 23. g4 {[%clk 0:00:39]}  Bg6 {[%clk 0:01:09]} 24. Ra7 {[%clk 0:00:39]}  c5 {[%clk 0:01:04]} 25. Rc7 {[%clk 0:00:32]}  a4 {[%clk 0:00:55]} 26. bxa4 {[%clk 0:00:32]}  Ra8 {[%clk 0:00:55]} 27. h4 {[%clk 0:00:19]}  h5 {[%clk 0:00:55]} 28. gxh5 {[%clk 0:00:17]}  Bf5 {[%clk 0:00:38]} 29. Bxc5 {[%clk 0:00:15]}  Rxa4 {[%clk 0:00:38]} 30. Bxb4 {[%clk 0:00:14]}  Rxb4 {[%clk 0:00:39]} 31. Rc5 {[%clk 0:00:14]}  Ra4 {[%clk 0:00:34]} 32. Rxe5 {[%clk 0:00:14]}  Bh7 {[%clk 0:00:33]} 33. Bf1 {[%clk 0:00:13]}  Kf7 {[%clk 0:00:30]} 34. Bb5 {[%clk 0:00:13]}  Ra3 {[%clk 0:00:27]} 35. Bc4+ {[%clk 0:00:13]}  Kf6 {[%clk 0:00:27]} 36. Re6+ {[%clk 0:00:14]}  Kf5 {[%clk 0:00:26]} 37. Re7 {[%clk 0:00:14]}  Kf6 {[%clk 0:00:20]} 38. Rf7+ {[%clk 0:00:14]}  Ke5 {[%clk 0:00:21]} 39. Rxg7 {[%clk 0:00:15]}  Bf5 {[%clk 0:00:21]} 40. h6 {[%clk 0:00:15]}  Ra8 {[%clk 0:00:19]} 41. h7 {[%clk 0:00:12]}  Rd8 {[%clk 0:00:15]} 42. Bg8 {[%clk 0:00:11]}  Bxh7 {[%clk 0:00:14]} 43. Bxh7 {[%clk 0:00:11]}  Kf4 {[%clk 0:00:14]} 44. Rf7+ {[%clk 0:00:11]}  Kg4 {[%clk 0:00:14]} 45. Bxe4 {[%clk 0:00:11]}  Kh3 {[%clk 0:00:15]} 46. Rf3+ {[%clk 0:00:10]}  Kxh4 {[%clk 0:00:15]} 47. Rg3 {[%clk 0:00:11]}  Rd2 {[%clk 0:00:14]} 48. a4 {[%clk 0:00:10]}  Ra2 {[%clk 0:00:14]} 49. Bc6 {[%clk 0:00:09]}  Rc2 {[%clk 0:00:14]} 50. Bb5 {[%clk 0:00:10]}  Rc1+ {[%clk 0:00:13]} 51. Kg2 {[%clk 0:00:10]}  Ra1 {[%clk 0:00:13]} 52. Rh3+ {[%clk 0:00:10]}  Kg4 {[%clk 0:00:13]} 53. Re3 {[%clk 0:00:11]}  Kf4 {[%clk 0:00:14]} 54. Rf3+ {[%clk 0:00:10]}  Kg4 {[%clk 0:00:14]} 55. Rf8 {[%clk 0:00:10]}  Kh4 {[%clk 0:00:14]} 56. f4 {[%clk 0:00:10]}  Kh5 {[%clk 0:00:14]} 57. Kf3 {[%clk 0:00:10]}  Kg6 {[%clk 0:00:15]} 58. Ke4 {[%clk 0:00:10]}  Kg7 {[%clk 0:00:16]} 59. Rf5 {[%clk 0:00:10]}  Kg6 {[%clk 0:00:17]} 60. Rc5 {[%clk 0:00:10]}  Kf6 {[%clk 0:00:17]} 61. Rc6+ {[%clk 0:00:10]}  Ke7 {[%clk 0:00:18]} 62. Kd5 {[%clk 0:00:10]}  Kd7 {[%clk 0:00:18]} 63. Rc1+ {[%clk 0:00:10]} 1-0


[Site "https://www.chess.com"]

[Event "Titled Tuesday Blitz February 15 Late 2022"]
[White "Bortnyk, Olexandr"]
[Black "Fishbein, Alexander"]
[WhiteFideId "14120828"]
[BlackFideId "2000377"]
[WhiteElo "2723"]
[BlackElo "2442"]
[Result "0-1"]
[Round "06"]
[TimeControl "180+1"]
[Date "2022.02.15"]
[WhiteClock "0:00:01"]
[BlackClock "0:00:12"]

1. d4 {[%clk 0:01:25]}  Nf6 {[%clk 0:02:57]} 2. Nc3 {[%clk 0:01:19]}  d5 {[%clk 0:02:55]} 3. Bf4 {[%clk 0:01:17]}  e6 {[%clk 0:02:53]} 4. Nb5 {[%clk 0:01:17]}  Na6 {[%clk 0:02:52]} 5. e3 {[%clk 0:01:17]}  Be7 {[%clk 0:02:52]} 6. Nf3 {[%clk 0:01:17]}  O-O {[%clk 0:02:52]} 7. Ne5 {[%clk 0:01:18]}  Nd7 {[%clk 0:02:44]} 8. a3 {[%clk 0:01:11]}  Nxe5 {[%clk 0:02:36]} 9. Bxe5 {[%clk 0:01:12]}  Bf6 {[%clk 0:02:29]} 10. Bg3 {[%clk 0:01:09]}  c6 {[%clk 0:02:26]} 11. Nc3 {[%clk 0:01:06]}  Nc7 {[%clk 0:02:21]} 12. Bd3 {[%clk 0:01:05]}  Re8 {[%clk 0:02:17]} 13. h4 {[%clk 0:01:01]}  e5 {[%clk 0:02:14]} 14. dxe5 {[%clk 0:00:57]}  Bxe5 {[%clk 0:02:09]} 15. Bxh7+ {[%clk 0:00:52]}  Kf8 {[%clk 0:01:51]} 16. Bxe5 {[%clk 0:00:43]}  Rxe5 {[%clk 0:01:51]} 17. Bd3 {[%clk 0:00:44]}  d4 {[%clk 0:01:45]} 18. Bc4 {[%clk 0:00:41]}  Be6 {[%clk 0:01:36]} 19. Bxe6 {[%clk 0:00:34]}  Nxe6 {[%clk 0:01:37]} 20. Ne2 {[%clk 0:00:27]}  dxe3 {[%clk 0:01:35]} 21. Qxd8+ {[%clk 0:00:24]}  Rxd8 {[%clk 0:01:27]} 22. f4 {[%clk 0:00:22]}  Re4 {[%clk 0:01:20]} 23. f5 {[%clk 0:00:22]}  Nf4 {[%clk 0:01:14]} 24. Ng3 {[%clk 0:00:17]}  Rc4 {[%clk 0:01:08]} 25. O-O {[%clk 0:00:18]}  Rd2 {[%clk 0:01:05]} 26. Rf3 {[%clk 0:00:14]}  Rxg2+ {[%clk 0:01:02]} 27. Kh1 {[%clk 0:00:14]}  Rcxc2 {[%clk 0:00:58]} 28. Rxe3 {[%clk 0:00:10]}  Rh2+ {[%clk 0:00:52]} 29. Kg1 {[%clk 0:00:10]}  Rcg2+ {[%clk 0:00:51]} 30. Kf1 {[%clk 0:00:10]}  Rf2+ {[%clk 0:00:48]} 31. Ke1 {[%clk 0:00:11]}  Rxb2 {[%clk 0:00:44]} 32. Rf3 {[%clk 0:00:09]}  Ng2+ {[%clk 0:00:35]} 33. Kf1 {[%clk 0:00:05]}  Nxh4 {[%clk 0:00:33]} 34. Rf4 {[%clk 0:00:05]}  Ng2 {[%clk 0:00:20]} 35. Rf3 {[%clk 0:00:05]}  Nh4 {[%clk 0:00:16]} 36. Rf4 {[%clk 0:00:06]}  g5 {[%clk 0:00:17]} 37. fxg6 {[%clk 0:00:03]}  Nxg6 {[%clk 0:00:17]} 38. Rf5 {[%clk 0:00:03]}  Rhg2 {[%clk 0:00:15]} 39. Rf3 {[%clk 0:00:02]}  Nh4 {[%clk 0:00:13]} 40. Rd3 {[%clk 0:00:02]}  Rbf2+ {[%clk 0:00:13]} 41. Ke1 {[%clk 0:00:03]}  Nf3+ {[%clk 0:00:13]} 42. Rxf3 {[%clk 0:00:01]}  Rxf3 {[%clk 0:00:13]} 43. Ne2 {[%clk 0:00:01]}  Re3 {[%clk 0:00:12]} 0-1


[Site "https://www.chess.com"]

[Event "Titled Tuesday Blitz February 15 Late 2022"]
[White "Csonka, Balazs"]
[Black "Przybylski, Wojciech"]
[WhiteFideId "742910"]
[BlackFideId "1117599"]
[WhiteElo "2404"]
[BlackElo "2133"]
[Result "0-1"]
[Round "06"]
[TimeControl "180+1"]
[Date "2022.02.16"]
[WhiteClock "0:00:01"]
[BlackClock "0:00:06"]

1. e4 {[%clk 0:03:00]}  e5 {[%clk 0:02:56]} 2. Nf3 {[%clk 0:03:01]}  Nf6 {[%clk 0:02:56]} 3. Nxe5 {[%clk 0:02:58]}  d6 {[%clk 0:02:55]} 4. Nf3 {[%clk 0:02:58]}  Nxe4 {[%clk 0:02:55]} 5. Nc3 {[%clk 0:02:56]}  Nxc3 {[%clk 0:02:55]} 6. dxc3 {[%clk 0:02:57]}  Be7 {[%clk 0:02:55]} 7. Be3 {[%clk 0:02:57]}  Nc6 {[%clk 0:02:53]} 8. Qd2 {[%clk 0:02:56]}  Ne5 {[%clk 0:02:53]} 9. Be2 {[%clk 0:02:41]}  O-O {[%clk 0:02:51]} 10. O-O-O {[%clk 0:02:38]}  c6 {[%clk 0:02:50]} 11. c4 {[%clk 0:02:22]}  Re8 {[%clk 0:02:46]} 12. Nxe5 {[%clk 0:02:05]}  dxe5 {[%clk 0:02:45]} 13. Qc3 {[%clk 0:02:05]}  Qc7 {[%clk 0:02:44]} 14. Rd2 {[%clk 0:02:00]}  Be6 {[%clk 0:02:38]} 15. Rhd1 {[%clk 0:01:59]}  f5 {[%clk 0:02:22]} 16. f3 {[%clk 0:01:45]}  Bf6 {[%clk 0:02:19]} 17. Qb4 {[%clk 0:01:37]}  b6 {[%clk 0:02:01]} 18. c5 {[%clk 0:01:19]}  b5 {[%clk 0:02:00]} 19. Rd6 {[%clk 0:01:12]}  a5 {[%clk 0:01:32]} 20. Qd2 {[%clk 0:01:11]}  Rad8 {[%clk 0:01:30]} 21. Kb1 {[%clk 0:01:00]}  Be7 {[%clk 0:01:26]} 22. Rxd8 {[%clk 0:00:55]}  Rxd8 {[%clk 0:01:25]} 23. Qe1 {[%clk 0:00:54]}  Rd5 {[%clk 0:01:16]} 24. c4 {[%clk 0:00:41]}  bxc4 {[%clk 0:00:54]} 25. Rc1 {[%clk 0:00:41]}  Rd3 {[%clk 0:00:38]} 26. Bxd3 {[%clk 0:00:20]}  cxd3 {[%clk 0:00:39]} 27. Bd2 {[%clk 0:00:19]}  a4 {[%clk 0:00:35]} 28. Qe3 {[%clk 0:00:16]}  Qd7 {[%clk 0:00:32]} 29. Qxe5 {[%clk 0:00:14]}  Bf6 {[%clk 0:00:29]} 30. Qd6 {[%clk 0:00:12]}  Qc8 {[%clk 0:00:16]} 31. Qxd3 {[%clk 0:00:10]}  f4 {[%clk 0:00:14]} 32. Ka1 {[%clk 0:00:09]}  Kf7 {[%clk 0:00:11]} 33. Bc3 {[%clk 0:00:08]}  Be7 {[%clk 0:00:11]} 34. Qxh7 {[%clk 0:00:07]}  Bf8 {[%clk 0:00:10]} 35. Re1 {[%clk 0:00:06]}  Bf5 {[%clk 0:00:10]} 36. Qh5+ {[%clk 0:00:06]}  Bg6 {[%clk 0:00:10]} 37. Qe5 {[%clk 0:00:06]}  Qd7 {[%clk 0:00:10]} 38. Qxf4+ {[%clk 0:00:06]}  Kg8 {[%clk 0:00:09]} 39. Qxa4 {[%clk 0:00:05]}  Bf7 {[%clk 0:00:09]} 40. Qd1 {[%clk 0:00:04]}  Qa7 {[%clk 0:00:09]} 41. a3 {[%clk 0:00:03]}  Bxc5 {[%clk 0:00:08]} 42. Qd8+ {[%clk 0:00:03]}  Kh7 {[%clk 0:00:08]} 43. Qh4+ {[%clk 0:00:03]}  Kg8 {[%clk 0:00:09]} 44. Qd8+ {[%clk 0:00:04]}  Kh7 {[%clk 0:00:09]} 45. Qd3+ {[%clk 0:00:04]}  Bg6 {[%clk 0:00:08]} 46. Qc4 {[%clk 0:00:04]}  Bxa3 {[%clk 0:00:08]} 47. Re4 {[%clk 0:00:01]}  Bd6+ {[%clk 0:00:06]} 48. Kb1 {[%clk 0:00:01]}  Be7 {[%clk 0:00:06]} 0-1


[Site "https://www.chess.com"]

[Event "Titled Tuesday Blitz February 15 Late 2022"]
[White "De Arruda, Leandro Formes"]
[Black "Saim, Mohamed Ilias"]
[WhiteFideId "22722009"]
[BlackFideId "7900465"]
[WhiteElo "1780"]
[BlackElo "2006"]
[Result "1-0"]
[Round "06"]
[TimeControl "180+1"]
[Date "2022.02.16"]
[WhiteClock "0:02:59"]
[BlackClock "0:01:57"]

1. d4 {[%clk 0:03:00]}  Nf6 {[%clk 0:02:57]} 2. Nf3 {[%clk 0:03:00]}  e6 {[%clk 0:02:57]} 3. e3 {[%clk 0:03:00]}  d5 {[%clk 0:02:57]} 4. Bd3 {[%clk 0:03:01]}  c5 {[%clk 0:02:57]} 5. c3 {[%clk 0:03:01]}  Nc6 {[%clk 0:02:57]} 6. Nbd2 {[%clk 0:03:02]}  Be7 {[%clk 0:02:54]} 7. O-O {[%clk 0:03:02]}  O-O {[%clk 0:02:54]} 8. Ne5 {[%clk 0:03:02]}  a6 {[%clk 0:02:42]} 9. f4 {[%clk 0:03:02]}  Qc7 {[%clk 0:02:41]} 10. Rf3 {[%clk 0:03:02]}  Ne8 {[%clk 0:02:32]} 11. Bxh7+ {[%clk 0:03:00]}  Kxh7 {[%clk 0:02:24]} 12. Rh3+ {[%clk 0:03:00]}  Kg8 {[%clk 0:02:07]} 13. Qh5 {[%clk 0:03:00]}  a5 {[%clk 0:01:57]} 14. Qh8# {[%clk 0:02:59]} 1-0


[Site "https://www.chess.com"]

[Event "Titled Tuesday Blitz February 15 Late 2022"]
[White "Debray, Christopher"]
[Black "Tan, Jun Ying"]
[WhiteFideId "630810"]
[BlackFideId "5710413"]
[WhiteElo "2369"]
[BlackElo "1827"]
[Result "1/2-1/2"]
[Round "06"]
[TimeControl "180+1"]
[Date "2022.02.16"]
[WhiteClock "0:00:53"]
[BlackClock "0:00:50"]

1. d4 {[%clk 0:02:58]}  Nf6 {[%clk 0:02:59]} 2. c4 {[%clk 0:02:58]}  c5 {[%clk 0:02:59]} 3. Nf3 {[%clk 0:02:57]}  cxd4 {[%clk 0:02:59]} 4. Nxd4 {[%clk 0:02:58]}  e5 {[%clk 0:02:59]} 5. Nb5 {[%clk 0:02:57]}  d5 {[%clk 0:02:59]} 6. cxd5 {[%clk 0:02:57]}  Bc5 {[%clk 0:02:59]} 7. N5c3 {[%clk 0:02:57]}  O-O {[%clk 0:02:58]} 8. g3 {[%clk 0:02:57]}  Bf5 {[%clk 0:02:49]} 9. Bg2 {[%clk 0:02:57]}  h6 {[%clk 0:02:47]} 10. O-O {[%clk 0:02:57]}  e4 {[%clk 0:02:46]} 11. Nd2 {[%clk 0:02:57]}  Re8 {[%clk 0:02:41]} 12. Nc4 {[%clk 0:02:57]}  Nbd7 {[%clk 0:02:40]} 13. Be3 {[%clk 0:02:57]}  a6 {[%clk 0:02:30]} 14. a4 {[%clk 0:02:46]}  Ng4 {[%clk 0:02:22]} 15. Bd4 {[%clk 0:02:31]}  Rc8 {[%clk 0:02:12]} 16. d6 {[%clk 0:02:13]}  Bxd4 {[%clk 0:01:52]} 17. Qxd4 {[%clk 0:02:14]}  Nge5 {[%clk 0:01:48]} 18. Nxe5 {[%clk 0:02:11]}  Rxe5 {[%clk 0:01:41]} 19. Nxe4 {[%clk 0:02:02]}  Qe8 {[%clk 0:01:31]} 20. Nc3 {[%clk 0:01:59]}  b5 {[%clk 0:01:31]} 21. axb5 {[%clk 0:01:58]}  axb5 {[%clk 0:01:31]} 22. Ra7 {[%clk 0:01:44]}  Kh7 {[%clk 0:01:20]} 23. g4 {[%clk 0:01:38]}  Rc4 {[%clk 0:01:15]} 24. Qxc4 {[%clk 0:01:25]}  bxc4 {[%clk 0:01:14]} 25. gxf5 {[%clk 0:01:25]}  Rxf5 {[%clk 0:01:11]} 26. Be4 {[%clk 0:01:24]}  g6 {[%clk 0:01:05]} 27. Bxf5 {[%clk 0:01:24]}  gxf5 {[%clk 0:01:06]} 28. Nd5 {[%clk 0:01:21]}  Qxe2 {[%clk 0:00:57]} 29. Rxd7 {[%clk 0:00:53]}  Qg4+ {[%clk 0:00:56]} 30. Kh1 {[%clk 0:00:54]}  Qf3+ {[%clk 0:00:55]} 31. Kg1 {[%clk 0:00:54]}  Qg4+ {[%clk 0:00:48]} 32. Kh1 {[%clk 0:00:53]}  Qf3+ {[%clk 0:00:49]} 33. Kg1 {[%clk 0:00:53]}  Qg4+ {[%clk 0:00:50]} 1/2-1/2


[Site "https://www.chess.com"]